{"text_format":"1","workbook":"xlsx","n_sheets":2,"sheets":["2 кв.2021","Лист1"],"not_rendered":{"charts":0,"images":0,"macros":0,"external_links":0,"defined_names":1,"comments":0,"pivot_tables":0},"unopened":[],"bounds":{"document_bytes":16777216,"sheet_cells":100000,"rows_first":2000,"rows_last":500,"rows_between":2000,"halvings":0,"cell_chars":16384,"cell_head_chars":4096},"cells_cut":0,"cells_raw":0,"read":"whole","date_system":"1900"}

{"sheet":"2 кв.2021","index":0,"n_rows":221,"n_cols":12,"rows_kept":221,"cut":false,"hidden":false,"merged":[[131,7,135,7],[101,6,106,6],[113,6,118,6],[0,1,0,10],[67,1,70,1],[51,6,60,6],[22,7,30,7],[62,7,63,7],[1,4,3,4],[1,5,3,5],[1,1,3,1],[1,3,3,3],[1,2,3,2],[1,6,3,6],[21,6,30,6],[37,6,42,6],[1,11,3,11],[113,7,118,7],[1,9,3,9],[1,10,3,10],[1,7,3,7],[1,8,3,8],[77,7,80,7],[107,7,112,7],[215,6,224,6],[61,6,66,6],[43,6,48,6],[137,6,142,6],[131,6,132,6],[107,6,112,6],[77,6,82,6],[199,6,200,6],[119,6,120,6]]}
[null,"Отчет о ходе реализации государственной программы Ивановской области \"Долгосрочная сбалансированность и устойчивость бюджетной системы Ивановской области\" за 2 квартал 2021 года"]
["№\nп/п","Наименование Программы/подпрограммы/основного мероприятия/мероприятия","Исполнитель","Источник финансирования","Объем ресурсного обеспечения, утвержденный Программой, руб.","Объем кассовых расходов на отчетную дату, руб.","Краткое описание текущего состояния процесса реализации основного мероприятия, мероприятия","Наименование целевого индикатора (показателя)","Единица измерения показателя","План","Факт","Справочно Объем бюджетных ассигнований, утвержденный Законом о бюджете, руб."]
[]
[]
[1,2,3,4,5,6,7,8,9,10,11,12]
[null,"Государственная программа Ивановской области \"Долгосрочная сбалансированность и устойчивость бюджетной системы Ивановской области\"","Департамент финансов Ивановской области","Всего:",{"$f":"E7","v":5539446813.9700003},{"$f":"F7","v":2419553353.5700002},null,"Отношение объема государственного долга к общему объему доходов областного бюджета без учета безвозмездных поступлений","%","<= 70,0",45.3,{"$f":"L7","v":5539446813.9700003}]
[null,null,null,"бюджетные ассигнования всего, в т.ч.:",{"$f":"E8","v":5539446813.9700003},{"$f":"F8","v":2419553353.5700002},null,"Отношение дефицита областного бюджета к объему доходов областного бюджета без учета объема безвозмездных поступлений","%",10,"-",{"$f":"L8","v":5539446813.9700003}]
[null,null,null," - областной бюджет",{"$f":"E12+E90+E150","v":5539446813.9700003},{"$f":"F12+F90+F150","v":2419553353.5700002},null,null,null,null,null,{"$f":"L12+L90+L150","v":5539446813.9700003}]
[null,null,null," - федеральный бюджет"]
[null,null,null," - бюджеты государственных внебюджетных фондов"]
[null,null,null,"внебюджетное финансирование"]
["1.","Подпрограмма \"Управление общественными финансами\"","Департамент финансов Ивановской области, Департамент экономического развития и торговли Ивановской области, служба государственного финансового контроля Ивановской области","Всего:",{"$f":"E13","v":614343770.63999999},{"$f":"F13","v":81902207.430000007},null,null,null,null,null,{"$f":"L13","v":614343770.63999999}]
[null,null,null,"бюджетные ассигнования всего, в т.ч.:",{"$f":"E14","v":614343770.63999999},{"$f":"F14","v":81902207.430000007},null,null,null,null,null,{"$f":"L14","v":614343770.63999999}]
[null,null,null," - областной бюджет",{"$f":"E22+E78","v":614343770.63999999},{"$f":"F22+F68","v":81902207.430000007},null,null,null,null,null,{"$f":"L22+L68","v":614343770.63999999}]
[null,null,null," - федеральный бюджет"]
[null,null,null," - бюджеты государственных внебюджетных фондов"]
[null,null,null,"внебюджетное финансирование"]
[]
[]
[]
[]
["1.1","Основное мероприятие \"Повышение качества управления региональными финансами\"","Департамент финансов Ивановской области","Всего:",{"$f":"E23","v":15350000},{"$f":"F23","v":5342000},"      В соответствии с постановлением Правительства Ивановской области от 31.05.2012 № 178-п «Об утверждении методики оценки качества финансового менеджмента главных администраторов средств областного бюджета» во 2 квартале 2021 года проведена оценка качества финансового менеджмента главных администраторов средств областного бюджета (далее - ГАБС) за 2020 год, по результатам которой итоговая рейтинговая оценка 27 из 30 ГАБС сложилась выше 50%, 3 ГАБС - ниже 50%.","доля расходов областного бюджета, осуществляемых в рамках государственных программ","%","> 95",98.1,{"$f":"L23","v":15350000}]
[null,null,null,"бюджетные ассигнования всего, в т.ч.:",{"$f":"E24","v":15350000},{"$f":"F24","v":5342000},null,"доля главных администраторов средств областного бюджета, имеющих итоговую рейтинговую оценку качества финансового менеджмента ниже 50% ","%",13,"10",{"$f":"L24","v":15350000}]
[null,null,null," - областной бюджет",15350000,{"$f":"F64","v":5342000},null,null,null,null,null,{"$f":"L62","v":15350000}]
[null,null,null," - федеральный бюджет"]
[null,null,null," - бюджеты государственных внебюджетных фондов"]
[null,null,null,"внебюджетное финансирование"]
[]
[]
[]
[]
["1.1.1","Мероприятие \"Разработка бюджетного прогноза (изменений бюджетного прогноза) Ивановской области на долгосрочный период\"","Департамент финансов Ивановской области ","Всего:",null,null,"    В связи с изменением прогнозных показателей социально-экономического развития Ивановской области на долгосрочный период, принятием Закона Ивановской области от 23.12.2020 № 89-ОЗ «Об областном бюджете на 2021 год и на плановый период 2022 и 2023 годов»  постановлением Правительства Ивановской области от  19.02.2021 № 94-п внесены изменения в бюджетный прогноз Ивановской области на 2017 – 2030 годы."]
[null,null,null,"бюджетные ассигнования всего, в т.ч.:"]
[null,null,null," - областной бюджет"]
[null,null,null," - федеральный бюджет"]
[null,null,null," - бюджеты государственных внебюджетных фондов"]
[null,null,null,"внебюджетное финансирование"]
["1.1.2","Мероприятие \"Совершенствование финансовых механизмов оказания государственных услуг (выполнения работ) казенными, бюджетными и автономными учреждениями\"","Департамент финансов Ивановской области (ответственный исполнитель) во взаимодействии с исполнительными органами государственной власти Ивановской области, организующими оказание государственных услуг областными бюджетными и автономными учреждениями.","Всего:",null,null,"    Формирование государственных заданий на оказание государственных услуг (выполнение работ) осуществляется в соответствии с общероссийскими базовыми (отраслевыми) перечнями (классификаторами) государственных и муниципальных услуг, оказываемых физическим лицам (далее - общероссийские перечни), и региональным перечнем (классификатором) государственных (муниципальных) услуг, не включенных в общероссийские перечни, и работ, оказание и выполнение которых предусмотрено нормативными правовыми актами Ивановской области (муниципальными правовыми актами).                                                                                                                                                                                                                                                                                                                                                                                                                                                                           В первом полугодии 2021 года Департаментом финансов рассматривались представленные исполнительными органами государственной власти Ивановской области на согласование предложения по внесению изменений в реестровые записи регионального перечня по соответствующим видам деятельности.   \n Расчет объема субсидии государственным бюджетным и автономным учреждениям Ивановской области на 2021 год осуществлялся на основании нормативных затрат на оказание государственных услуг (выполнение работ). Расчет нормативных затрат осуществлялся на основе базовых нормативов затрат с применением отраслевых, территориальных коэффициентов. При расчете нормативных затрат учитывались доходы, получаемые бюджетными и автономными учреждениями от взимания платы при оказании государственных услуг в случаях, установленных законодательством, и оказания платных услуг сверх установленного государственного задания.\n Региональная нормативная правовая база устанавливает обязанность главных распорядителей бюджетных средств Ивановской области, в ведении которых находятся государственные казенные учреждения Ивановской области, исполнительных органов государственной власти Ивановской области, осуществляющих функции и полномочия учредителя государственных бюджетных или  автономных учреждений Ивановской области, по осуществлению контроля за выполнением государственных заданий путем проведения ежеквартального мониторинга, который позволяет им своевременно получать информацию о фактических отклонениях выполнения государственного задания и принимать соответствующие меры к руководителю учреждения за невыполнение государственного задания, а также решения об изменении показателей государственного задания и уточнении объема субсидии на его выполнение. Наличие подобных инструментов является основой финансовой ответственности бюджетных и автономных учреждений при осуществлении расходов в рамках оказания государственных услуг (выполнения работ) и влечет за собой повышение качества финансового менеджмента главных распорядителей бюджетных средств.\n\n\n"]
[null,null,null,"бюджетные ассигнования всего, в т.ч.:"]
[null,null,null," - областной бюджет"]
[null,null,null," - федеральный бюджет"]
[null,null,null," - бюджеты государственных внебюджетных фондов"]
[null,null,null,"внебюджетное финансирование"]
["1.1.3","Мероприятие \"Развитие системы внутреннего государственного финансового контроля\"","Служба государственного финансового контроля Ивановской области","Всего:",null,null,"  В  рамках выработки государственной политики и нормативного правового регулирования организации и осуществления деятельности органа внутреннего государственного финансового контроля, являющегося исполнительным органом государственной власти Ивановской области, службой государственного финансового контроля Ивановской области (далее - Служба) :\n- подготовлен проект постановления Правительства Ивановской области «О внесении изменений в постановление Правительства Ивановской области от 25.12.2013 № 540-п «Об утверждении Положения о службе государственного финансового контроля Ивановской области» (постановление Правительства Ивановской области от 18.02.2021 № 77-п).\n   При  реализации полномочий по осуществлению внутреннего государственного финансового контроля за период январь – июнь 2021 года Службой проведено 16 контрольных мероприятий, в том числе 2 внеплановые проверки. Общий объем проверенных средств составил 4985885,4 тыс. рублей, общий объем выявленных нарушений составил 277 единиц на  сумму 3314426,1 тыс. рублей.\n   В целях предупреждения нарушений в финансово-бюджетной сфере и сфере закупок, по результатам проведенных проверок, Службой объектам контроля направлено 19 представлений, 2 предписания в адрес вышестоящих органов, главных распорядителей бюджетных средств, учредителей подведомственных учреждений направлены информационные письма, возбуждено 71 дело об административных правонарушениях.\n"]
[null,null,null,"бюджетные ассигнования всего, в т.ч.:"]
[null,null,null," - областной бюджет"]
[null,null,null," - федеральный бюджет"]
[null,null,null," - бюджеты государственных внебюджетных фондов"]
[null,null,null,"внебюджетное финансирование"]
[]
[]
["1.1.4","Мероприятие \"Обеспечение открытости и прозрачности управления общественными финансами\"","Департамент финансов Ивановской области","Всего:",null,null,"       По результатам рейтинга субъектов Российской Федерации по уровню открытости бюджетных данных за 2020 год Ивановская область вошла в группу с высоким уровнем открытости бюджетных данных.   \n      В отчетном периоде 2021 года проводились работы по актуализации, обновлению и размещению информации в отношении данных областного и консолидированного бюджетов Ивановской области на официальном сайте Департамента финансов Ивановской области, размещению информации на странице Департамента финансов в социальной сети \"\"ВКонтакте\"\" в сети Интернет. Кроме того, в соответствии с приказом Министерства финансов Российской Федерации от 28 декабря 2016 г. № 243н проводилась работа по размещению соответствующей информации на едином портале бюджетной системы Российской Федерации.\n      В январе 2021 года сотрудники Департамента финансов Ивановской области приняли участие в работе Круглого стола в онлайн формате по обсуждению проекта Методики составления рейтинга субъектов Российской Федерации по уровню открытости бюджетных данных за 2021 год, организованного Научно-исследовательским финансовым институтом Министерства финансов Российской Федерации совместно с Департаментом методологии и финансовой отчетности в государственном секторе Министерства финансов Российской Федерации, где были представлены в том числе предложения и замечания Департамента финансов Ивановской области.\n     В соответствии с распоряжением Департамента финансов от 12.05.2017 № 106 «Об установлении порядка оценки открытости бюджетных данных и участия граждан в бюджетном процессе в муниципальных образованиях Ивановской области» в целях стимулирования органов местного самоуправления к реализации принципа прозрачности (открытости) бюджетной системы Российской Федерации и обеспечению полноты, качества и своевременности публикации информации о бюджетных данных муниципальных образований Ивановской области в сети Интернет, в 1 полугодии 2021 года Департаментом финансов проведена оценка открытости бюджетных данных муниципальных образований Ивановской области по показателям 4 этапа - «Составление проекта бюджета муниципального образования», а также составлен рейтинг муниципальных образований по уровню открытости бюджетных данных по итогам 2020 года."]
[null,null,null,"бюджетные ассигнования всего, в т.ч.:"]
[null,null,null," - областной бюджет"]
[null,null,null," - федеральный бюджет"]
[null,null,null," - бюджеты государственных внебюджетных фондов"]
[null,null,null,"внебюджетное финансирование"]
[]
[]
[]
[]
["1.1.5","Мероприятие \"Внедрение, развитие и сопровождение государственной информационной системы \"Система управления региональными финансами Ивановской области\"","Департамент финансов Ивановской области","Всего:",{"$f":"E63","v":15350000},{"$f":"F63","v":5342000},"     Подготовлена документация для проведения запроса котировок в электронной форме на оказание услуг по предоставлению неисключительных прав на использование программы для ЭВМ \"Программа для формирования и ведения перечня и реестра источников доходов бюджетов (Перечень и реестры источников доходов бюджетов)\", обеспечивающей в автоматическом режиме формирование и ведение перечня и реестра источников доходов бюджетов бюджетной системы Российской Федерации, входящей в состав ГИС СУРФ. Контракт заключен с победителем аукциона 01.03.2021.\n     Подготовлена документация для проведения электронного аукциона на оказание услуг по предоставлению неисключительных прав на использование программного комплекса (программ для ЭВМ) по составлению и исполнению доходов и расходов бюджетов субъектов и муниципальных образований в технологии \"клиент-сервер\", входящего в состав ГИС СУРФ. Контракт заключен с победителем аукциона 01.03.2021.\n     Подготовлена документация для проведения электронного аукциона на оказание услуг по предоставлению неисключительных прав на использование программного комплекса (программы для ЭВМ) обеспечивающего в автоматическом режиме составление проектов бюджета Ивановской области на основе обоснований бюджетных ассигнований и формирование реестра расходных обязательств Ивановской области – «Проект-СМАРТ Про», входящего в состав ГИС СУРФ. Контракт заключен с победителем аукциона 05.04.2021.\n     В подсистеме сбора и консолидации бюджетной отчетности государственной информационной системы «Система управления региональными финансами Ивановской области» в соответствии с новым Порядком проведения мониторинга местных бюджетов и межбюджетных отношений в субъектах Российской Федерации на региональном и муниципальных уровнях были реализованы формы мониторинга местных бюджетов в соответствии с приложением №2 Порядка, настроен механизм их сбора и свода.\n     В подсистеме составления и исполнения областного бюджета в соответствии с требованиями Приказа Казначейства России от 17.10.2016 № 21н «О порядке открытия и ведения лицевых счетов территориальными органами Федерального казначейства» выполнены: 1. перевод справочников лицевых счетов бюджетополучателей на новые казначейские счета открытия; 2. настроены механизмы приема электронных документов о кассовых операциях со средствами бюджета, сведений об остатках средств бюджета, выписок из казначейских счетов; 3. проведена совместная работа с УФК по Ивановской области по устранению несоответствий принимаемых электронных документов требованиям к форматам файлов, используемым при  информационном взаимодействии.\n     Проводилась работа по техническому сопровождению пользователей ГИС СУФ, в том числе по настройке удаленных автоматизированных мест и установке на них средств криптографической защиты доступа.\n   В целях своевременного представления реестра расходных обязательств Ивановской области и свода реестра расходных обязательств  муниципальных образований (далее -РРО) в Министерство финансов Российской Федерации выполнены работы по модернизации программного комплекса по составлению и исполнению бюджета «Бюджет – СМАРТ Про». Департамент финансов Ивановской области успешно в установленные сроки провел загрузку РРО в единую информационную аналитическую систему Министерства финансов Российской Федерации в соответствии с требованиями к форматам и способам передачи РРО в электронном виде. Совместно с Правительством Ивановской области обеспечено подписание электронной подписью исполняющего обязанности Губернатора Ивановской области Справочной таблицы по финансированию полномочий субъектов Российской Федерации и муниципальных образований по данным консолидированного бюджета субъекта Российской Федерации\n\n","доля главных распорядителей средств областного бюджета, обеспеченных возможностью работы в ГИС","%",100,100,{"$f":"L63","v":15350000}]
[null,null,null,"бюджетные ассигнования всего, в т.ч.:",{"$f":"E64","v":15350000},{"$f":"F64","v":5342000},null,"количество точек подключения к ГИС ","ед.","1550\n",1587,{"$f":"L64","v":15350000}]
[null,null,null," - областной бюджет",15350000,5342000,null,null,null,null,null,15350000]
[null,null,null," - федеральный бюджет"]
[null,null,null," - бюджеты государственных внебюджетных фондов"]
[null,null,null,"внебюджетное финансирование"]
["1.2","Основное мероприятие \"Управление резервными средствами областного бюджета\"","Департамент финансов Ивановской области","Всего:",{"$f":"E69","v":598993770.63999999},{"$f":"F69","v":76560207.430000007},null,null,null,null,null,{"$f":"L69","v":598993770.63999999}]
[null,null,null,"бюджетные ассигнования всего, в т.ч.:",{"$f":"E70","v":598993770.63999999},{"$f":"F70","v":76560207.430000007},null,null,null,null,null,{"$f":"L70","v":598993770.63999999}]
[null,null,null," - областной бюджет",{"$f":"E78","v":598993770.63999999},{"$f":"F78+F84","v":76560207.430000007},null,null,null,null,null,{"$f":"L78+L84","v":598993770.63999999}]
[null,null,null," - федеральный бюджет"]
[null,null,null," - бюджеты государственных внебюджетных фондов"]
[null,null,null,"внебюджетное финансирование"]
[]
[]
[]
[]
["1.2.1","Мероприятие \"Резервный фонд Правительства Ивановской области\"","Департамент финансов Ивановской области","Всего:",{"$f":"E79","v":598993770.63999999},76560207.430000007,"    В 1 полугодии 2021 года из резервного фонда Правительства Ивановской области было выделено 77841,22 тыс.руб., в том числе : по распоряжению Правительства Ивановской области от 25.01.2021  № 1-рп Департаменту здравоохранения Ивановской области - 33000,00 тыс. руб., по распоряжению Правительства Ивановской области от 29.04.2021 № 48-рп Департаменту дорожного хозяйства и транспорта Ивановской области -1092,17 тыс.руб., по распоряжению Правительства Ивановской области от 04.06.2021 № 58-рп : Юрьевецкому муниципальному району Ивановской области  - 36533,17 тыс.руб., Департаменту образования Ивановской области - 3074,78 тыс. руб., Пучежскому муниципальному району -  2299,35 тыс. руб., Пестяковсковскому муниципальному району - 449,25 тыс. руб., Пестяковсковскому сельскому поселению - 234,6 тыс. руб.,Верхнеландеховскиому муниципальному району -  678,05 тыс. руб., Комитету Ивановской области по обеспечению деятельности мировых судей и гражданской защите населения - 479,85 тыс.рублей. ","число случаев нарушения установленных сроков выделения средств из резервного фонда Правительства Ивановской области","раз",0,"0",{"$f":"L79","v":598993770.63999999}]
[null,null,null,"бюджетные ассигнования всего, в т.ч.:",{"$f":"E80","v":598993770.63999999},{"$f":"F80","v":76560207.430000007},null,null,null,null,null,{"$f":"L80","v":598993770.63999999}]
[null,null,null," - областной бюджет",598993770.63999999,76560207.430000007,null,null,null,null,null,598993770.63999999]
[null,null,null," - федеральный бюджет"]
[null,null,null," - бюджеты государственных внебюджетных фондов"]
[null,null,null,"внебюджетное финансирование"]
["1.2.2","Мероприятие \"Резервный фонд Ивановской области\"","Департамент финансов Ивановской области","Всего:",{"$f":"E85","v":0},{"$f":"F85","v":0},null,null,null,null,null,{"$f":"L85","v":0}]
[null,null,null,"бюджетные ассигнования всего, в т.ч.:",{"$f":"E86","v":0},{"$f":"F86","v":0},null,null,null,null,null,{"$f":"L86","v":0}]
[null,null,null," - областной бюджет"]
[null,null,null," - федеральный бюджет"]
[null,null,null," - бюджеты государственных внебюджетных фондов"]
[null,null,null,"внебюджетное финансирование"]
["2.","Подпрограмма \"Управление государственным долгом Ивановской области\"","Департамент финансов Ивановской области","Всего:",{"$f":"E91","v":300764073.32999998},{"$f":"F91","v":25481020.140000001},null,null,null,null,null,{"$f":"L91","v":300764073.32999998}]
[null,null,null,"бюджетные ассигнования всего, в т.ч.:",{"$f":"E92","v":300764073.32999998},{"$f":"F92","v":25481020.140000001},null,null,null,null,null,{"$f":"L92","v":300764073.32999998}]
[null,null,null," - областной бюджет",{"$f":"E126","v":300764073.32999998},{"$f":"F126","v":25481020.140000001},null,null,null,null,null,{"$f":"L126","v":300764073.32999998}]
[null,null,null," - федеральный бюджет"]
[null,null,null," - бюджеты государственных внебюджетных фондов"]
[null,null,null,"внебюджетное финансирование"]
["2.1","Основное мероприятие \"Планирование объема государственного долга и расходов на его обслуживание\"\n","Департамент финансов Ивановской области","Всего:"]
[null,null,null,"бюджетные ассигнования всего, в т.ч.:"]
[null,null,null," - областной бюджет"]
[null,null,null," - федеральный бюджет"]
[null,null,null," - бюджеты государственных внебюджетных фондов"]
[null,null,null,"внебюджетное финансирование"]
["2.1.1","Мероприятие \"Осуществление финансово-долгового прогнозирования\"","Департамент финансов Ивановской области","Всего:",null,null,"   Мероприятие будет проводиться в рамках составления проекта областного бюджета на 2022 год и на плановый период 2023 и 2024 годов."]
[null,null,null,"бюджетные ассигнования всего, в т.ч.:"]
[null,null,null," - областной бюджет"]
[null,null,null," - федеральный бюджет"]
[null,null,null," - бюджеты государственных внебюджетных фондов"]
[null,null,null,"внебюджетное финансирование"]
["2.1.2","Мероприятие \"Осуществление финансово-долгового планирования\"","Департамент финансов Ивановской области","Всего:",null,null,"    Мероприятие будет проводиться в рамках составления проекта областного бюджета на 2022 год и на плановый период 2023 и 2024 годов","Доля общего объема долговых обязательств по государственным ценным бумагам Ивановской области и кредитам, полученным от кредитных организаций, иностранных банков и международных финансовых организаций в сумме доходов областного бюджета без учета безвозмездных поступлений"]
[null,null,null,"бюджетные ассигнования всего, в т.ч.:",null,null,null,null,"%","<= 40",3.7]
[null,null,null," - областной бюджет"]
[null,null,null," - федеральный бюджет"]
[null,null,null," - бюджеты государственных внебюджетных фондов"]
[null,null,null,"внебюджетное финансирование"]
["2.1.3"," Мероприятие \"Планирование долговых обязательств\"","Департамент финансов Ивановской области","Всего:",null,null,"     С учетом итогов исполнения областного бюджета за 2020 год произведен расчет объемов привлечения и погашения кредитов банков, расчет расходов на  обслуживание государственного долга для внесения изменений в закон об областном бюджете на 2021-2023 годы. Изменения приняты Законом Ивановской области от 26.03.2020 № 19-ОЗ \"О внесении изменений в Закон Ивановской области \"Об областном бюджете на 2021 год и на плановый период 2022 и 2023 годов\"","Отношение годовой суммы платежей по погашению и обслуживанию государственного долга к общему объему налоговых, неналоговых доходов областного бюджета и дотаций из бюджетов бюджетной системы Российской Федерации"]
[null,null,null,"бюджетные ассигнования всего, в т.ч.:",null,null,null,null,"%","<= 20\n",7.3]
[null,null,null," - областной бюджет"]
[null,null,null," - федеральный бюджет"]
[null,null,null," - бюджеты государственных внебюджетных фондов"]
[null,null,null,"внебюджетное финансирование"]
["2.1.4","Мероприятие \"Финансовый учет и контроль состояния государственного долга\"","Департамент финансов Ивановской области","Всего:",null,null,"    Отчеты о долговых обязательствах Ивановской области ежемесячно направлялись в Минфин России в установленом им порядке. Государственный долг находится в объеме, не превышающем ограничения, установленного БК РФ."]
[null,null,null,"бюджетные ассигнования всего, в т.ч.:"]
[null,null,null," - областной бюджет"]
[null,null,null," - федеральный бюджет"]
[null,null,null," - бюджеты государственных внебюджетных фондов"]
[null,null,null,"внебюджетное финансирование"]
["2.2","Основное мероприятие \"Управление государственным долгом\"","Департамент финансов Ивановской области","Всего:",{"$f":"E127","v":300764073.32999998},{"$f":"F127","v":25481020.140000001},null,null,null,null,null,{"$f":"L127","v":300764073.32999998}]
[null,null,null,"бюджетные ассигнования всего, в т.ч.:",{"$f":"E128","v":300764073.32999998},{"$f":"F128","v":25481020.140000001},null,null,null,null,null,{"$f":"L128","v":300764073.32999998}]
[null,null,null," - областной бюджет",{"$f":"E144","v":300764073.32999998},{"$f":"F144","v":25481020.140000001},null,null,null,null,null,{"$f":"L144","v":300764073.32999998}]
[null,null,null," - федеральный бюджет"]
[null,null,null," - бюджеты государственных внебюджетных фондов"]
[null,null,null,"внебюджетное финансирование"]
["2.2.1","Мероприятие \"Обеспечение осуществления государственных заимствований\"","Департамент финансов Ивановской области","Всего:",null,null,"    Заключен договор с УФК Ивановской области о предоставлении бюджету Ивановской области кредитных ресурсов для пополнения остатков средств на едином счете областного бюджета от 30.03.2021 № 09-25/3652. Привлечение заимствований в 1 полугодии 2021 года не производилось","Процент исполнения программы заимствований","%",100,0]
[null,null,null,"бюджетные ассигнования всего, в т.ч.:"]
[null,null,null," - областной бюджет"]
[null,null,null," - федеральный бюджет"]
[null,null,null," - бюджеты государственных внебюджетных фондов"]
[null,null,null,"внебюджетное финансирование"]
["2.2.2","Мероприятие \"Изменение размера и структуры государственного долга\"","Департамент финансов Ивановской области","Всего:",null,null,"   В связи с досрочным частичным погашением в 1 квартале 2021 года кредитов банков в сумме 0,8 и бюджетного кредита в сумме 0,4 млрд.рублей изменились объем и структура государственного долга.   Доля банковских кредитов в общем объеме госдолга сократилась с  14,1% на 01.01.2021 до 8,2% на 01.07.2021"]
[null,null,null,"бюджетные ассигнования всего, в т.ч.:"]
[null,null,null," - областной бюджет"]
[null,null,null," - федеральный бюджет"]
[null,null,null," - бюджеты государственных внебюджетных фондов"]
[null,null,null,"внебюджетное финансирование"]
["2.2.3","Мероприятие \"Обслуживание государственного долга\"","Департамент финансов Ивановской области","Всего:",{"$f":"E145","v":300764073.32999998},{"$f":"F145","v":25481020.140000001},"   Проведены операции по выплате доходов  в виде процентов по банковским кредитам. Просроченной задолженности не имеется.","Доля расходов на обслуживание государственного долга в общем объеме расходов областного бюджета, за исключением объема расходов, которые осуществляются за счет субвенций, предоставляемых из бюджетов бюджетной системы Российской Федерации","%","<= 5",0.05,{"$f":"L145","v":300764073.32999998}]
[null,null,null,"бюджетные ассигнования всего, в т.ч.:",{"$f":"E146","v":300764073.32999998},{"$f":"F146","v":25481020.140000001},null,"Объем просроченной задолженности по долговым обязательствам\n","руб.",0,0,{"$f":"L146","v":300764073.32999998}]
[null,null,null," - областной бюджет",300764073.32999998,25481020.140000001,null,null,null,null,null,300764073.32999998]
[null,null,null," - федеральный бюджет"]
[null,null,null," - бюджеты государственных внебюджетных фондов"]
[null,null,null,"внебюджетное финансирование"]
["3.","Подпрограмма \"Обеспечение сбалансированности бюджетов муниципальных образований\"","Департамент финансов Ивановской области","Всего:",{"$f":"E152","v":4624338970},{"$f":"F160+F190+F206","v":2312170126},null,null,null,null,null,{"$f":"L160+L190+L206","v":4624338970}]
[null,null,null,"бюджетные ассигнования всего, в т.ч.:",{"$f":"E152","v":4624338970},{"$f":"F161+F191+F207","v":2312170126},null,null,null,null,null,{"$f":"L161+L191+L207","v":4624338970}]
[null,null,null," - областной бюджет",{"$f":"E162+E192+E218","v":4624338970},{"$f":"F162+F192+F218","v":2312170126},null,null,null,null,null,{"$f":"L162+L192+L218","v":4624338970}]
[null,null,null," - федеральный бюджет"]
[null,null,null," - бюджеты государственных внебюджетных фондов"]
[null,null,null,"внебюджетное финансирование"]
[]
[]
[]
[]
["3.1","Основное мероприятие \"Выравнивание бюджетной обеспеченности муниципальных образований Ивановской области\"","Департамент финансов Ивановской области","Всего:",{"$f":"E170+E180","v":3872232800},1936116710,null,null,null,null,null,{"$f":"L170+L180","v":3872232800}]
[null,null,null,"бюджетные ассигнования всего, в т.ч.:",3872232800,1936116710,null,null,null,null,null,{"$f":"L171+L181","v":3872232800}]
[null,null,null," - областной бюджет",3872232800,1936116710,null,null,null,null,null,{"$f":"L172+L182","v":3872232800}]
[null,null,null," - федеральный бюджет"]
[null,null,null," - бюджеты государственных внебюджетных фондов"]
[null,null,null,"внебюджетное финансирование"]
[]
[]
[]
[]
["3.1.1"," Мероприятие \"Предоставление дотаций бюджетам поселений на выравнивание бюджетной обеспеченности\"","Департамент финансов Ивановской области","Всего:",{"$f":"E171","v":771111400},{"$f":"F171","v":388985640},"  Дотации на выравнивание бюджетной обеспеченности поселений перечисляются ежемесячно в соответствии с кассовым планом исполнения областного бюджета","эффективность выравнивания бюджетной обеспеченности сельских поселений","раз",1.2,null,{"$f":"L171","v":777970800}]
[null,null,null,"бюджетные ассигнования всего, в т.ч.:",{"$f":"E172","v":771111400},{"$f":"F172","v":388985640},null,"эффективность выравнивания бюджетной обеспеченности городских поселений","раз",1.2,null,{"$f":"L172","v":777970800}]
[null,null,null," - областной бюджет",771111400,388985640,null,null,null,null,null,777970800]
[null,null,null," - федеральный бюджет"]
[null,null,null," - бюджеты государственных внебюджетных фондов"]
[null,null,null,"внебюджетное финансирование"]
[]
[]
[]
[]
["3.1.2","Мероприятие \"Предоставление дотаций бюджетам муниципальных районов (городских округов) на выравнивание бюджетной обеспеченности\"","Департамент финансов Ивановской области","Всего:",{"$f":"E181","v":3101121400},{"$f":"F181","v":1547131070}," Дотации на выравнивание бюджетной обеспеченности муниципальных районов (городских округов) перечисляются ежемесячно в соответствии с кассовым планом исполнения областного бюджета","эффективность выравнивания бюджетной обеспеченности муниципальных районов и городских округов","раз",1,null,{"$f":"L181","v":3094262000}]
[null,null,null,"бюджетные ассигнования всего, в т.ч.:",{"$f":"E182","v":3101121400},{"$f":"F182","v":1547131070},null,null,null,null,null,{"$f":"L182","v":3094262000}]
[null,null,null," - областной бюджет",3101121400,1547131070,null,null,null,null,null,3094262000]
[null,null,null," - федеральный бюджет"]
[null,null,null," - бюджеты государственных внебюджетных фондов"]
[null,null,null,"внебюджетное финансирование"]
[]
[]
[]
[]
["3.2","Основное мероприятие \"Предоставление дополнительной финансовой помощи в виде бюджетных кредитов бюджетам муниципальных образований\"","Департамент финансов Ивановской области","Всего:"]
[null,null,null,"бюджетные ассигнования всего, в т.ч.:"]
[null,null,null," - областной бюджет"]
[null,null,null," - федеральный бюджет"]
[null,null,null," - бюджеты государственных внебюджетных фондов"]
[null,null,null,"внебюджетное финансирование"]
[]
[]
[]
[]
["3.2.1","Мероприятие \"Предоставление бюджетных кредитов местным бюджетам\"","Департамент финансов Ивановской области","Всего:",null,null,"   Бюджетные кредиты муниципальным образованиям не предоставлялись в связи с отсутствием обращений муниципальных образований","объем предоставленных местным бюджетам бюджетных кредитов  в целях покрытия временных кассовых разрывов\n","млн. руб.",50,0]
[null,null,null,"бюджетные ассигнования всего, в т.ч.:",null,null,null,"объем предоставленных местным бюджетам бюджетных кредитов  в целях частичного покрытия дефицитов бюджетов\n","млн. руб.",50,0]
[null,null,null," - областной бюджет"]
[null,null,null," - федеральный бюджет"]
[null,null,null," - бюджеты государственных внебюджетных фондов"]
[null,null,null,"внебюджетное финансирование"]
["3.3","Основное мероприятие \"Поддержка мер по обеспечению сбалансированности местных бюджетов\"","Департамент финансов Ивановской области","Всего:",{"$f":"E216","v":752106170},376053416,null,null,null,null,null,{"$f":"L216","v":752106170}]
[null,null,null,"бюджетные ассигнования всего, в т.ч.:",752106170,376053416,null,null,null,null,null,{"$f":"L217","v":752106170}]
[null,null,null," - областной бюджет",{"$f":"E218","v":752106170},376053416,null,null,null,null,null,{"$f":"L216","v":752106170}]
[null,null,null," - федеральный бюджет"]
[null,null,null," - бюджеты государственных внебюджетных фондов"]
[null,null,null,"внебюджетное финансирование"]
[]
[]
[]
[]
["3.3.1","Мероприятие \"Предоставление дотаций на поддержку мер по обеспечению сбалансированности местных бюджетов\"","Департамент финансов Ивановской области","Всего:",{"$f":"E217","v":752106170},{"$f":"F217","v":376053416}," Дотации на поддержку мер по обеспечению сбалансированности местных бюджетов перечисляются ежемесячно в соответствии с кассовым планом исполнения областного бюджета","Количество муниципальных образований, которым предоставлены дотации на поддержку мер по обеспечению сбалансированности местных бюджетов ","ед.",130,130,{"$f":"L217","v":752106170}]
[null,null,null,"бюджетные ассигнования всего, в т.ч.:",{"$f":"E218","v":752106170},{"$f":"F218","v":376053416},null,null,null,null,null,{"$f":"L218","v":752106170}]
[null,null,null," - областной бюджет",752106170,376053416,null,null,null,null,null,752106170]
[null,null,null," - федеральный бюджет"]
[null,null,null," - бюджеты государственных внебюджетных фондов"]
[null,null,null,"внебюджетное финансирование"]

{"sheet":"Лист1","index":1,"n_rows":0,"n_cols":0,"rows_kept":0,"cut":false,"hidden":false,"merged":[[24,3,29,3],[37,4,38,4]]}